Cogmind - Beta 16.1 @@@ ROGUE MODE // 2026.04.06 @ 01:49:35 Player: gamerman Result: Destroyed by PT-KOH(R) with Subdweller Beam Cannon Performance ------------- Evolutions (0) 0 Regions Visited (3) 600 Robots Destroyed (12) 60 Value Destroyed (257) 257 Prototype IDs (2) 40 Alien Tech Used (0) 0 Bonus (0) 0 TOTAL SCORE: 957 Bonus ------- None Cogmind --------- Core Integrity 0/250 Matter 269/300 Energy 68/100 System Corruption 0% Temperature Cool (9) Movement Flying (37) Location -10/Subcaves Parts ------- > --- POWER (1) -------- (None) > --- PROPULSION (2) --- Flight Unit Flight Unit > --- UTILITY (2) ------ Targeting Computer > --- WEAPON (2) ------- Assault Rifle > --- INVENTORY (5) ---- Ion Engine Light Treads Combat Airjet Flight Unit Flight Unit Peak State ------------ > --- POWER ------------ Ion Engine > --- PROPULSION ------- Light Treads Light Treads > --- UTILITY ---------- Medium Storage Unit Targeting Computer > --- WEAPON ----------- EM Pulse Gun Assault Rifle > --- INVENTORY -------- Ion Engine Light Deuterium Engine Light Treads Light Treads Flight Unit Flight Unit Flight Unit Medium Storage Unit [Rating: 8] Favorites ----------- Power Ion Engine Engine Ion Engine Propulsion Light Treads Treads Light Treads Flight Unit Flight Unit Utility Medium Storage Unit Storage Medium Storage Unit Processor Targeting Computer Weapon Assault Rifle Energy Gun EM Pulse Gun Ballistic Gun Assault Rifle Build | -11 -10 -10 -10 ------- Run | Yrd Mat Min Sub Slots Evolved . | . . . . Power . | . . . . Propulsion . | . . . . Utility . | . . . . Weapon . | . . . . Parts Attached 10 | 6 2 . 2 Power 1 | 1 . . . Engine 1 | 1 . . . Core . | . . . . Reactor . | . . . . Propulsion 4 | 2 . . 2 Treads 2 | 2 . . . Leg . | . . . . Wheel . | . . . . Hover . | . . . . Flight 2 | . . . 2 Utility 3 | 1 2 . . Device . | . . . . Storage 2 | 1 1 . . Processor 1 | . 1 . . Hackware . | . . . . Protection . | . . . . Artifact . | . . . . Weapon 2 | 2 . . . Energy Gun 1 | 1 . . . Energy Cannon . | . . . . Ballistic Gun 1 | 1 . . . Ballistic Cannon . | . . . . Launcher . | . . . . Special Weapon . | . . . . Impact Weapon . | . . . . Slashing Weapon . | . . . . Piercing Weapon . | . . . . Special Melee Weapon . | . . . . Unidentified Prototypes . | . . . . Parts Lost 4 | . . . 4 Power 1 | . . . 1 Propulsion 2 | . . . 2 Utility . | . . . . Weapon 1 | . . . 1 Highest Loss Streak 4 | . . . 4 To Critical Strikes . | . . . . Average Backups 6 | . 3 8 10 Power 1 | . 1 1 2 Propulsion 4 | . 1 6 8 Utility . | . . . . Weapon . | . . . . Tool/Special . | . . . . Unused Backups 9 | . . 1 8 Power 2 | . . . 2 Propulsion 6 | . . . 6 Utility 1 | . . 1 . Weapon . | . . . . Tool/Special . | . . . . Average Slot Usage (%) 96 | . 92 100 97 Engine 13 | . 14 14 13 Treads 27 | . 28 28 27 Storage 13 | . 14 14 13 Processor 11 | . 7 14 14 Energy Gun 13 | . 14 14 13 Ballistic Gun 14 | . 14 14 14 Peak Build Rating 8 | 6 7 8 8 Average Rating 7 | 4 6 7 7 On Entrance 5 | . 6 7 8 Avg Prop Armor Cover (%) . | . . . . Naked Turns . | . . . . Heaviest Build 19 | 14 19 19 19 Greatest Support 40 | 40 40 40 40 Greatest Overweight (x) 3 | 3 . . . Average Overweight (x) . | . . . . Largest Inventory Capacity 10 | 8 10 10 10 Average Capacity 9 | 7 9 10 9 Most Carried 10 | 1 7 10 10 Average Carried 6 | . 3 8 9 Final Capacity 10 | 8 10 10 5 Final Carried 10 | 1 7 10 5 Class Distribution -------------------- 100% | Mutant Dominant Class ---------------- Mutant | -10/Materials Mutant | -10/Mines Mutant | -10/Subcaves Resources | -11 -10 -10 -10 ----------- Run | Yrd Mat Min Sub Matter Collected 361 | 223 108 3 27 Remotely . | . . . . Salvage Created 376 | . 267 16 93 Parts 22 | . 16 3 3 Haulers Intercepted 1 | . 1 . . Recyclers Shooed . | . . . . Parts Field Recycled . | . . . . Retrieved Matter . | . . . . Parts Self-Destructed 7 | . . . 7 Prevented 1 | . . . 1 Parts Restored . | . . . . Kills | -11 -10 -10 -10 ------- Run | Yrd Mat Min Sub Combat Hostiles Destroyed 10 | . 6 2 2 Guns 9 | . 5 2 2 AOE 1 | . 1 . . Classes Destroyed 5 | . 4 1 . Hauler 1 | . 1 . . Watcher 2 | . 2 . . Swarmer 4 | . 3 1 . Grunt 5 | . 3 . 2 Assembled 1 | . . 1 . Best Kill Streak 3 | . 3 1 1 Combat Bots Only 3 | . 3 1 1 Max Kills in Single Turn 1 | . 1 1 1 Gunslinging . | . . . . Exploded 1 | . 1 . . Melee . | . . . . Uniques/NPCs Destroyed . | . . . . Combat | -11 -10 -10 -10 -------- Run | Yrd Mat Min Sub Hostile Shots Fired 57 | . 25 2 30 Missed 13 | . 7 . 6 Hits 44 | . 18 2 24 Projectile 44 | . 18 2 24 Damage Taken 750 | . 217 19 514 Core 268 | . 69 19 180 Absorbed by Shields . | . . . . Core Remaining (%) 100 | 100 . . . Volleys Fired 35 | . 17 2 16 Largest 2 | . 2 2 2 Hottest 60 | . 60 60 60 Shots Fired 62 | . 34 4 24 Gun 62 | . 34 4 24 Cannon . | . . . . Launcher . | . . . . Special . | . . . . Kinetic 35 | . 17 2 16 Thermal . | . . . . Explosive . | . . . . Electromagnetic 27 | . 17 2 8 Robot Hit Streak 13 | . 6 5 13 Robot Miss Streak 3 | . 3 . 3 Penetration Max . | . . . . Secondary Targets 3 | . 2 . 1 Max Gunslinging Chain 1 | . 1 . 1 Shots Hit Robots 43 | . 21 4 18 Core Hits 20 | . 12 2 6 Critical Kills . | . . . . Critical Parts Destroyed . | . . . . Critical Strikes . | . . . . Melee Attacks . | . . . . Impact . | . . . . Slashing . | . . . . Piercing . | . . . . Sneak Attacks . | . . . . Combat Hostiles . | . . . . Follow-up Attacks . | . . . . Damage Inflicted 709 | . 361 51 297 Guns 576 | . 289 51 236 Cannons . | . . . . Explosions 133 | . 72 . 61 Melee . | . . . . Ramming . | . . . . Kinetic 297 | . 104 28 165 Thermal 133 | . 72 . 61 Explosive . | . . . . Electromagnetic 279 | . 185 23 71 Impact . | . . . . Slashing . | . . . . Piercing . | . . . . Highest Corruption . | . . . . Average Corruption . | . . . . Corruption Purged . | . . . . Corruption Blocked . | . . . . Overload Shots . | . . . . Overflow Damage 33 | . . . 33 Projectiles . | . . . . Explosions 33 | . . . 33 Melee . | . . . . Knockbacks . | . . . . Impact . | . . . . Kinetic . | . . . . Secondary . | . . . . Self-Inflicted Damage 24 | . 24 . . Shots 1 | . 1 . . Rammed . | . . . . Targets Rammed . | . . . . Kicked . | . . . . Crushed . | . . . . Highest Temperature 78 | . 78 2 . Average Temperature 34 | . 34 2 . Received Heat Transfer 290 | . 78 20 192 Siege Activations . | . . . . Martial Activations . | . . . . Shielding Activations . | . . . . Robots Disrupted . | . . . . Combat Hostiles . | . . . . Robots Corrupted . | . . . . Combat Hostiles . | . . . . Parts Fried . | . . . . Impact Corruptions . | . . . . Robots Melted . | . . . . Combat Hostiles . | . . . . Parts Melted . | . . . . Heat Transferred 150 | . 100 . 50 Parts Sabotaged . | . . . . Parts Stolen . | . . . . Parts Stripped . | . . . . Power Chain Reactions 3 | . 2 . 1 Alert | -11 -10 -10 -10 ------- Run | Yrd Mat Min Sub Maximum Alert Level . | . . . . Low Security (%) 100 | 100 100 100 . Level 1 . | . . . . Level 2 . | . . . . Level 3 . | . . . . Level 4 . | . . . . Level 5 . | . . . . High Security . | . . . . Max Security . | . . . . Peak Influence 95 | . 95 30 . Initial 15 | . . 15 . Average 23 | . 37 5 . Influence Increases 288 | . 208 30 50 Destroy 0b10 Robot/C 180 | . 120 20 40 Destroy 0b10 Robot/NC 15 | . 15 . . Destroy Leader 46 | . 26 10 10 Successful Hack 26 | . 26 . . Destroy Structure 6 | . 6 . . Partial Spotted 15 | . 15 . . Influence Decreases 288 | . 169 69 50 Entered New Map 24 | . . 24 . Time Decay 248 | . 153 45 50 Purge Threat 16 | . 16 . . Squads Dispatched 1 | . 1 . . Investigation 1 | . 1 . . Extermination . | . . . . Reinforcement . | . . . . Assault . | . . . . Garrison . | . . . . Intercept . | . . . . Searches Triggered . | . . . . Construction Impeded . | . . . . Haulers Reinforced . | . . . . Active Scanning Responses . | . . . . Cargo Convoy Interrupts . | . . . . Stealth | -11 -10 -10 -10 --------- Run | Yrd Mat Min Sub Distress Signals 1 | . 1 . . Communications Jammed . | . . . . Distress Signals . | . . . . Times Spotted 16 | . 9 3 4 Peak Tracking Total 3 | . 3 1 2 Tactical Retreats 1 | . . 1 . Traps | -11 -10 -10 -10 ------- Run | Yrd Mat Min Sub Traps Triggered 1 | . 1 . . Indirectly . | . . . . Trap Hack Attempts . | . . . . Triggered . | . . . . Disarmed . | . . . . Reprogrammed . | . . . . Reused . | . . . . Traps Extracted . | . . . . Installed . | . . . . Triggered . | . . . . Machines | -11 -10 -10 -10 ---------- Run | Yrd Mat Min Sub Machines Disabled . | . . . . Max in Single Turn . | . . . . Machines Repaired . | . . . . Machines Dismantled . | . . . . Machines Sabotaged . | . . . . Overloaded Fab Kills . | . . . . Hacking | -11 -10 -10 -10 --------- Run | Yrd Mat Min Sub Machines Accessed 7 | . 6 . 1 Terminals 5 | . 5 . . Fabricators . | . . . . Repair Stations . | . . . . Recycling Units 1 | . 1 . . Scanalyzers . | . . . . Garrison Access . | . . . . Total Hacks 26 | . 21 . 5 Successful 17 | . 12 . 5 Failed 9 | . 9 . . Catastrophic . | . . . . Database Lockouts . | . . . . Manual 14 | . 14 . . Terminals 19 | . 19 . . Fabricators . | . . . . Repair Stations . | . . . . Recycling Units 2 | . 2 . . Scanalyzers . | . . . . Garrison Access . | . . . . Terminal Hacks 11 | . 6 . 5 Record 5 | . . . 5 Prototype ID Bank 1 | . 1 . . Branch Access Points 1 | . 1 . . Terminal Index 1 | . 1 . . Unreport Threat 1 | . 1 . . Hauler Manifests 1 | . 1 . . Registered Components 1 | . 1 . . Fabricator Hacks . | . . . . Repair Station Hacks . | . . . . Recycling Unit Hacks 2 | . 2 . . Report Inventory 1 | . 1 . . Retrieve Components 1 | . 1 . . Scanalyzer . | . . . . Garrison Access Hacks . | . . . . Unauthorized Hacks 4 | . 4 . . Terminals 4 | . 4 . . Botnet 4 | . 4 . . Fabricators . | . . . . Repair Stations . | . . . . Recycling Units . | . . . . Scanalyzers . | . . . . Garrison Access . | . . . . Data Cores Recovered . | . . . . Used . | . . . . Hacking Detections 4 | . 4 . . Full Trace Events . | . . . . Feedback Events . | . . . . Feedback Blocked . | . . . . Robot Schematics Acquired . | . . . . Robots Built . | . . . . Authchips . | . . . . Time . | . . . . Total Robot Build Rating . | . . . . Part Schematics Acquired . | . . . . Parts Built . | . . . . Authchips . | . . . . Time . | . . . . Total Part Build Rating . | . . . . Part Studies Acquired . | . . . . Parts Repaired . | . . . . Time . | . . . . Parts Recycled . | . . . . Recycled Matter . | . . . . Retrieved Matter . | . . . . Retrieved Components 7 | . 7 . . Parts Scanalyzed . | . . . . Part Schematics Acquired . | . . . . Parts Damaged . | . . . . Bothacking | -11 -10 -10 -10 ------------ Run | Yrd Mat Min Sub Used RIF Installer . | . . . . Robots Hacked . | . . . . Non-combat . | . . . . Combat . | . . . . Robot Hacks Applied . | . . . . Relay Couplers Released . | . . . . Fabnet Peak Effective % . | . . . . Robots Rewired . | . . . . Allies Hacked . | . . . . Hacks Repelled . | . . . . Allies | -11 -10 -10 -10 -------- Run | Yrd Mat Min Sub Total Allies . | . . . . Largest Group . | . . . . Highest-Rated Group . | . . . . Highest-Rated Ally . | . . . . Total Orders . | . . . . Ally Attacks . | . . . . Total Damage . | . . . . Kills . | . . . . Allies Corrupted . | . . . . Allies Melted . | . . . . Intel | -11 -10 -10 -10 ------- Run | Yrd Mat Min Sub Active Infowar (turns) . | . . . . Robot Analysis Total . | . . . . Derelict Logs Recovered 1 | . . . 1 Drone Launches . | . . . . Drone Recoveries . | . . . . Exploration | -11 -10 -10 -10 ------------- Run | Yrd Mat Min Sub Turns Passed 1151 | 74 420 247 410 Spaces Moved 601 | 42 210 120 229 Core 8 | 7 . . 1 Treads 592 | 35 210 120 227 Legs . | . . . . Wheels . | . . . . Hover . | . . . . Flight 1 | . . . 1 Fastest Speed 40 | 50 160 160 40 Average Speed 159 | 154 160 160 158 Slowest Speed 200 | 200 160 160 160 Overloaded Moves . | . . . . Propulsion Burnouts . | . . . . Robots Hopped . | . . . . Potential Cave-ins . | . . . . Cave-ins Triggered . | . . . . Exploration Rate (%) 25 | 3 43 40 15 Regions Visited 3 Branch Regions 2 Pre-discovered Areas . | . . . . Known Exits Taken 1 | . 1 . . Unknown Exits Taken 2 | 1 . 1 . Scrap Searched 1 | . . 1 . Spaces Dug . | . . . . Terrain Destroyed 8 | . 6 . 2 Melee . | . . . . Projectile . | . . . . AOE 8 | . 6 . 2 Terrain Rammed . | . . . . Walls Destroyed . | . . . . Machines Disabled . | . . . . Actions | -11 -10 -10 -10 --------- Run | Yrd Mat Min Sub Total 730 | 48 260 172 250 Wait 73 | . 25 46 2 Move 598 | 41 209 119 229 Hop . | . . . . Pick Up 11 | 1 6 4 . Fast Attach 10 | 6 2 . 2 Attach . | . . . . Detach . | . . . . Swap . | . . . . Drop 3 | . 1 1 1 Fire 35 | . 17 2 16 Melee . | . . . . Ram . | . . . . Kick . | . . . . Crush . | . . . . Escape Stasis . | . . . . Rewire . | . . . . Trap . | . . . . Miscellaneous . | . . . . Route ------- -11/Scrapyard -10/Materials -10/Mines (discovered 2 exits: [*Mat] / *Sub) -10/Subcaves (discovered 3 exits: Mat x2 / Rec) History --------- Turn | Location | Event 21 | -11/Scrapyard | Discovered new exit (range 15) 75 | -11/Scrapyard | Entered Materials 317 | -10/Materials | Build established: Mutant 325 | -10/Materials | Identified exit to Mines 495 | -10/Materials | Entered Mines 508 | -10/Mines | Assembled infested the area 513 | -10/Mines | Assisted by a Guerilla fighting off Assembled 669 | -10/Mines | Discovered new exit (range 9) 687 | -10/Mines | Received a Rocket Launcher from a helpful Derelict 725 | -10/Mines | Discovered new exit (range 4) 742 | -10/Mines | Entered Subcaves 770 | -10/Subcaves | Identified exit to Recycling 1051 | -10/Subcaves | Visited Clippyterm 1055 | -10/Subcaves | Identified exit to Materials 1055 | -10/Subcaves | Learned Factory garrison access intel 1134 | -10/Subcaves | Core integrity fell below 50% 1145 | -10/Subcaves | Core integrity fell below 20% 1152 | -10/Subcaves | Destroyed by PT-KOH(R) with Subdweller Beam Cannon Last Messages --------------- It looks like you're REDACTED, I can suggest REDACTED and REDACTED. Also definitely avoid REDACTED. >>Record "Clippyterm" Welcome to Clippyterm v0.53, my misguided attempt to resurrect an ancient AI. I give up. There must be something fundamentally wrong with the algorithm, because no matter how much data I collect to feed it, half the time it still manages to suggest unhelpful sample queries and responses. --DD-NU8 01125_ EM Pulse Gun destroyed. 01131_ Lgt. Treads destroyed. 01137_ Ion Engine destroyed. 01146_ Lgt. Treads destroyed. 01148_ Dropped Med. Storage Unit. 01149_ Acquired Flight Unit. 01151_ Subatomizers dissect the Lgt. Deuterium Engine. 01151_ Acquired Flight Unit. Map ----- +----------------------------------------------------+ | | | | | | | | | ?????????????????????????????????????????????????? | | ?????????????????????????????????????????????????? | | ?????????????????????????????????????????????????? | | ?????????????????????????????????????????????????? | | ?????????????????????????????????????????????????? | | ?????????????????????????????????????????????????? | | ?????????????????????????????????????????????????? | | ?????????????????????????????????????????????????? | | ?????????????????????????????????????????????????? | | ?????????????????????????????????????????????????? | | ?????????????????????????????????????????????????? | | ?????????????????????????????????????????????????? | | ?????????????????????##??????????????????????????? | | ?????????????????????# ??????????????????????????? | | ??????????????????##?" ?##???????????#???????????? | | ?????????????????## ## # ????##???? ????????????? | | ##??????????????## " " ???? ##?? ?????????????? | | ##?????????????# ????? ## ??????????????? | | #?????????????# ???? ???????????????? | | ##??????????????# #???? ????????????????? | | ##?????????????????# ##### ##????????????????? | | ###??#####?####?### @!=# #????????????????? | | #### ### ### ## * R #?????????????????? | | ## ## # ##?????????????????? | | ## ######??????????????????? | | ?## # ## #???????????????????????? | | ??# ## ######## ##???????????????????????? | | ####??????########????????????????????????? | | ##?????????????????????????????????????????? | | ##??????????????????????????????????????????? | | #???????????????????????????????????????????? | | ## #??????????????????????????????????????????? | | #?# #??????????????????????????????????????????? | | ## #??????????????????????????????????????????? | | #??????????????????????????????????????????? | | ##??????????????????????????????????????????? | | ##???????????????????????????????????????????? | | ##????????????????????????????????????????????? | | #??????????????????????????????????????????>??? | | ? #????????????????????????????????????????????? | | ?? ##????????????????????????????????????????????? | | ?????????????????????????????????????????????????? | | ?????????????????????????????????????????????????? | | ?????????????????????????????????????????????????? | | ?????????????????????????????????????????????????? | | ?????????????????????????????????????????????????? | +----------------------------------------------------+ Best States ------------- Heat Dissipation 25 Energy Generation 10 Energy Capacity 250 Matter Stores 300 Matter Capacity 300 Sight Range 16 Terrain Scan Density 10 Evasion (%) 50 Targeting Accuracy 5 Recoil Reduction 2 Item Schematics ----------------- None Robot Schematics ------------------ None Fabricated ------------ Nothing Repaired ---------- Nothing Studied --------- None Alien Tech Used ----------------- None Achievements -------------- None Challenges ------------ None Game ------ Seed BoltScrapoidTriangulator Manual? 0 Play Time 00:13:43 Cumulative 34.5 hours Start 2026.04.06 @ 01:21:27 End 2026.04.06 @ 01:49:35 Sessions 2 Manual Loads 0 Difficulty Rogue Special Mode None Game No. 44 Rogue 44 Adventurer 0 Explorer 0 Win Type - Total 1 Types 1/0/0/0/0/0/0/0/0/0 Lore% 33 Gallery% 30 Achievement% 26 Wizard Run 0 Options --------- Layout 1 ASCII 0 Keyboard 0 Movement Vi Keybinds 0 Fullscreen 1 Font 24/Smallcaps Map View 50x40 Zoom Use 0% Tactical HUD 1 Map Filters NONE Filters NONE Steam 1 RUN: dc1d649b-5564-40d2-9d7a-4007c674340d